bitfinex-derivatives/quotes_ETHF0:USTF0_20240913
["timestamp","ask_amount","ask_price","bid_price","bid_amount"]
[1726248046158,1.56468905,2412.1,2412.0,0.41453]
[1726248046364,0.41454,2412.0,2411.8,0.41456]
[1726248046561,1.08468905,2411.9,2411.8,0.41456]
[1726248046763,2.52319659,2412.1,2411.7,6.4478]
[1726248046963,0.48,2412.1,2412.0,0.41453]
[1726248047167,5.75978659,2412.2,2411.9,3.24]
[1726248047372,1.08454848,2412.0,2411.9,3.65454]
[1726248047667,6.17428659,2412.2,2412.0,0.41453]
[1726248047668,1.08454848,2412.1,2412.0,0.41453]
[1726248048770,1.08454848,2412.1,2412.0,1.31393]
[1726248048968,4.54559,2412.2,2412.1,0.41451]
[1726248049276,5.75978659,2412.2,2412.1,0.41451]
[1726248049472,4.1311,2412.2,2412.1,0.41451]
[1726248049772,4.12644462,2412.2,2412.1,0.41451]
[1726248050776,5.21010204,2412.2,2412.1,0.41451]
[1726248050974,2.00230204,2412.2,2412.1,0.41451]
[1726248051662,0.89448,2412.3,2412.0,1.03632]
[1726248051663,1.56365742,2412.3,2412.0,1.03632]
[1726248051864,1.08365742,2412.3,2412.2,0.41449]
[1726248052075,1.08365742,2412.3,2412.2,4.56009]
[1726248052473,1.08365742,2412.4,2412.3,1.45066]
[1726248052677,1.08365742,2412.5,2412.4,0.41446]
[1726248052873,4.73565742,2412.6,2412.5,0.41444]
[1726248053173,1.52748092,2412.6,2412.5,0.41444]
[1726248053377,1.08328092,2412.6,2412.5,0.41444]
[1726248053572,1.52128092,2412.7,2412.6,0.41442]
[1726248054969,0.438,2412.7,2412.6,0.41442]
[1726248055174,1.08328092,2412.8,2412.7,0.41441]
[1726248056078,1.08328092,2412.8,2412.6,0.8945]
[1726248056079,2.46034882,2412.9,2412.8,0.41439]
[1726248056471,1.3772,2412.9,2412.8,0.41439]
[1726248056675,2.4603938,2412.9,2412.8,0.41439]
[1726248057776,2.4603938,2412.9,2412.6,0.8945]
[1726248057972,2.4603938,2412.9,2412.8,0.41439]
[1726248059467,2.8747638,2412.9,2412.7,0.4144]
[1726248059784,1.0831938,2412.8,2412.7,0.41439]
[1726248059978,1.0831938,2412.8,2412.5,3.2078]
[1726248059979,1.4975838,2412.8,2412.6,0.41441]
[1726248060171,1.0831938,2412.8,2412.5,3.2078]
[1726248060373,1.0831938,2412.8,2412.7,0.41441]
[1726248060579,3.42027659,2412.9,2412.8,0.41439]
[1726248060580,3.00588659,2412.9,2412.8,0.41439]
[1726248061676,3.42025659,2412.9,2412.6,0.8913]
[1726248061983,3.42025659,2412.9,2412.8,0.41439]
[1726248062177,3.00588659,2412.9,2412.8,0.41439]
[1726248062378,1.3772,2412.9,2412.8,0.41439]
[1726248062675,3.00201646,2412.9,2412.8,0.41439]
[1726248063981,1.3772,2412.9,2412.8,0.41439]
[1726248064276,3.00207707,2412.9,2412.8,0.41439]
[1726248064877,1.3772,2412.9,2412.8,0.41439]
[1726248065088,2.46040189,2412.9,2412.8,0.41439]
[1726248065583,2.46043941,2412.9,2412.8,0.41439]
[1726248065780,1.3772,2412.9,2412.8,0.41439]
[1726248066085,3.00207707,2412.9,2412.8,0.41439]
[1726248067177,1.3772,2412.9,2412.8,0.41439]
[1726248067376,3.00207707,2412.9,2412.8,0.41439]
[1726248068081,1.3772,2412.9,2412.8,0.41439]
[1726248068276,2.46046806,2412.9,2412.8,0.41439]
[1726248070181,2.46046806,2412.9,2412.8,3.62219]
[1726248071382,2.87483806,2412.9,2412.8,3.2078]
[1726248071585,3.41644707,2412.9,2412.8,0.41439]
[1726248071882,3.00207707,2412.9,2412.5,3.24]
[1726248072084,1.08359195,2412.7,2412.6,0.41442]
[1726248072280,1.08359195,2412.8,2412.7,0.41441]
[1726248073386,1.62487707,2412.8,2412.7,0.41441]
[1726248073791,2.03926707,2412.8,2412.7,0.41441]
[1726248073994,1.62487707,2412.8,2412.7,0.41441]
[1726248074197,1.62487707,2412.8,2412.5,3.24]
[1726248074198,1.03602,2412.7,2412.5,3.24]
[1726248074384,0.41444,2412.5,2412.1,5.18564]
[1726248074585,0.4725,2412.4,2412.3,0.41447]
[1726248074784,2.03554956,2412.4,2412.3,0.41447]
[1726248075187,1.36626,2412.4,2412.3,0.41447]
[1726248075385,2.45029665,2412.4,2412.3,0.41447]
[1726248075591,0.41448,2412.3,2412.2,0.41449]
[1726248075789,0.41449,2412.2,2412.1,0.4145]
[1726248076087,1.49851665,2412.3,2412.2,0.41449]
[1726248076295,2.03936707,2412.3,2412.2,0.41449]
[1726248076484,0.4145,2412.2,2412.1,0.4145]
[1726248076685,1.49869788,2412.2,2412.1,0.4145]
[1726248077494,1.95638788,2412.3,2412.1,0.4145]
[1726248077694,1.08419788,2412.2,2412.1,0.4145]
[1726248078094,1.95638788,2412.3,2412.2,0.41449]
[1726248078599,0.41449,2412.2,2412.1,0.4145]
[1726248078897,1.49875647,2412.2,2412.1,0.4145]
[1726248079990,1.08426647,2412.2,2412.1,0.4145]
[1726248081596,2.49705707,2412.3,2412.1,0.4145]
[1726248081995,1.08461065,2412.2,2412.1,0.4145]
[1726248082500,1.08472664,2412.2,2412.1,0.4145]
[1726248082792,0.4145,2412.2,2412.0,0.41452]
[1726248082993,1.08474163,2412.1,2412.0,0.41452]
[1726248083796,1.49925163,2412.1,2411.7,8.39034]
[1726248083998,0.85,2412.0,2411.9,0.41453]
[1726248084192,1.93474163,2412.0,2411.9,0.41453]
[1726248084389,0.85,2412.0,2411.9,0.41453]
[1726248086697,1.26453,2412.0,2411.9,0.41453]
[1726248087505,0.85,2412.0,2411.9,0.41453]
[1726248088903,1.26453,2412.0,2411.9,0.41453]
[1726248090210,0.41455,2411.9,2411.8,0.41454]
[1726248090505,0.88515,2411.9,2411.8,0.41454]
[1726248091899,0.41456,2411.8,2411.7,3.62237]
[1726248092403,1.49930163,2411.8,2411.7,3.62237]
[1726248093109,1.96990163,2411.9,2411.8,0.41456]
[1726248096199,0.41457,2411.8,2411.7,0.41456]
[1726248096611,1.96989163,2411.9,2411.8,0.41456]
[1726248099603,0.88515,2411.9,2411.8,0.41456]
[1726248100607,0.88515,2411.9,2411.7,1.90457]
[1726248100608,0.41456,2411.8,2411.7,1.90457]
[1726248100807,0.41459,2411.7,2411.6,0.41459]
[1726248101108,0.41464,2411.4,2411.3,0.41463]
[1726248103312,0.89603,2411.5,2411.4,0.41463]
[1726248104008,0.41463,2411.4,2411.3,0.41463]
[1726248105610,0.41465,2411.3,2411.2,3.62245]
[1726248106310,0.41464,2411.4,2411.3,0.41465]
[1726248106514,3.6892,2411.5,2410.9,1.03678]
[1726248106813,0.41469,2411.1,2410.9,0.41471]
[1726248107011,1.179,2411.0,2410.9,0.41471]
[1726248109107,1.179,2411.0,2410.7,0.3736]
[1726248109305,1.59371,2411.0,2410.8,0.41473]
[1726248109506,1.59371,2411.0,2410.7,0.3736]
[1726248109507,1.179,2411.0,2410.9,0.41472]
[1726248110816,1.5937,2411.0,2410.8,0.41472]
[1726248112216,1.179,2411.0,2410.9,0.41472]
[1726248113910,0.41466,2411.3,2411.1,0.41467]
[1726248114111,1.55186,2411.3,2411.1,0.41467]
[1726248114616,0.41466,2411.2,2411.1,0.41467]
[1726248115217,0.41466,2411.2,2411.0,0.79369]
[1726248115813,0.41467,2411.2,2411.0,0.79369]
[1726248116018,0.41467,2411.2,2411.1,0.41468]
[1726248116507,0.41467,2411.2,2411.0,0.79369]
[1726248116708,0.41467,2411.2,2411.1,0.41468]
[1726248117121,0.41466,2411.2,2411.1,0.41468]
[1726248117917,1.1372,2411.3,2411.0,0.379]
[1726248118118,0.41466,2411.2,2411.1,0.41468]
[1726248119025,1.55186,2411.3,2411.1,0.41468]
[1726248119520,1.55186,2411.3,2411.0,0.379]
[1726248119521,0.41467,2411.2,2411.0,0.379]
[1726248119925,1.55186,2411.3,2411.1,0.41467]
[1726248120220,1.1372,2411.3,2411.1,0.41467]
[1726248120421,1.55186,2411.3,2411.1,0.41467]
[1726248120921,1.1372,2411.3,2411.1,0.41467]
[1726248121222,1.55186,2411.3,2411.1,0.80487]
[1726248121517,1.08474163,2411.4,2411.3,0.41465]
[1726248121712,1.49935163,2411.5,2411.4,0.41463]
[1726248121916,1.49936163,2411.5,2411.3,0.41464]
[1726248122718,1.49936163,2411.5,2411.4,0.41463]
[1726248123613,2.6904,2411.6,2411.4,0.41463]
[1726248123614,4.18975163,2411.6,2411.4,0.41463]
[1726248123922,2.28514163,2411.6,2411.5,0.41461]
[1726248124517,1.2004,2411.6,2411.5,0.41461]
[1726248124716,1.47744163,2411.6,2411.5,0.41461]
[1726248124926,1.08474163,2411.7,2411.6,0.4146]
[1726248125425,6.00244163,2411.8,2411.6,0.41458]
[1726248125819,2.29900163,2411.8,2411.6,0.41458]
[1726248126014,0.41459,2411.7,2411.4,1.49]
[1726248126220,0.4146,2411.6,2411.4,0.41462]
[1726248126518,1.08474163,2411.7,2411.6,0.4146]
[1726248126930,2.29900163,2411.8,2411.6,0.4146]
[1726248127222,1.49264163,2411.9,2411.8,0.41456]
[1726248127417,0.4079,2411.9,2411.8,0.41456]
[1726248128226,1.08474163,2412.0,2411.8,0.41456]
[1726248128421,1.83064163,2412.1,2411.9,0.4048]
[1726248128614,1.83064163,2412.1,2412.0,0.41453]
[1726248130824,1.08474163,2412.2,2412.1,0.41451]
[1726248131021,1.47594163,2412.3,2412.2,0.41449]
[1726248131924,1.47594163,2412.3,2412.1,0.8157]
[1726248132118,1.47594163,2412.3,2412.2,0.41449]
[1726248136533,0.3912,2412.3,2412.2,0.41449]
[1726248137234,1.47594163,2412.3,2412.2,0.41449]
[1726248138425,0.3912,2412.3,2412.2,0.41449]
[1726248140926,0.80568,2412.3,2412.1,0.4145]
[1726248141328,0.3912,2412.3,2412.2,0.41449]
[1726248143228,1.47594163,2412.3,2412.2,0.41449]
[1726248143622,0.3912,2412.3,2412.2,0.41449]
[1726248149836,0.80567,2412.3,2412.2,0.41449]
[1726248150625,0.3912,2412.3,2412.2,0.41449]
[1726248151636,0.80567,2412.3,2412.2,0.41449]
[1726248152038,0.4145,2412.2,2412.1,0.4145]
[1726248152339,0.3912,2412.3,2411.8,4.2442]
[1726248152340,2.9174,2412.3,2411.8,4.2442]
[1726248152541,0.4145,2412.2,2412.1,0.4145]
[1726248153435,0.41452,2412.1,2412.0,0.41452]
[1726248153735,0.41449,2412.2,2412.1,0.4145]
[1726248154142,4.56009,2412.2,2412.1,0.4145]
[1726248155631,0.41452,2412.1,2412.0,0.41451]
[1726248155840,0.41457,2411.8,2411.7,0.41456]
[1726248156138,0.41455,2411.9,2411.8,0.41455]
[1726248156529,0.79975,2411.9,2411.8,0.41455]
[1726248157037,0.3852,2411.9,2411.8,0.41455]
[1726248157233,0.79974,2411.9,2411.8,0.41455]
[1726248158540,1.88448163,2411.9,2411.8,0.41455]
[1726248161334,1.03641,2411.8,2411.5,3.2078]
[1726248161539,0.4146,2411.6,2411.5,3.62239]
[1726248161735,0.41462,2411.5,2411.2,1.03666]
[1726248161936,1.83998378,2411.5,2411.4,0.41462]
[1726248162538,0.7564,2411.5,2411.4,0.41462]
[1726248162741,1.83998378,2411.5,2411.4,0.41462]
[1726248163840,2.25459378,2411.5,2411.4,0.41462]
[1726248164045,1.83998378,2411.5,2411.4,0.41462]
[1726248165444,1.83998378,2411.5,2411.3,0.41464]
[1726248165746,1.49822378,2411.4,2411.2,0.41465]
[1726248165942,1.08358378,2411.3,2411.1,1.49]
[1726248166146,1.49821378,2411.4,2411.3,0.41465]
[1726248166340,0.41463,2411.4,2411.3,0.41465]
[1726248166544,1.49930744,2411.4,2411.3,0.41465]
[1726248167150,1.49924717,2411.4,2411.3,0.41465]
[1726248168548,0.41463,2411.4,2411.3,0.41465]
[1726248169042,1.4992985,2411.4,2411.3,0.41465]
[1726248169245,1.0846685,2411.4,2411.3,0.41465]
[1726248169445,2.2556885,2411.5,2411.4,0.41463]
[1726248169644,1.62487707,2411.6,2411.5,0.41461]
[1726248169850,0.41461,2411.5,2411.4,0.41462]
[1726248170152,1.49927139,2411.5,2411.4,0.41462]
[1726248170342,0.41461,2411.5,2411.4,0.41462]
[1726248170538,2.03948707,2411.5,2411.4,0.41462]
[1726248172943,1.62487707,2411.5,2411.4,0.41462]
[1726248173150,1.62487707,2411.5,2411.4,1.8427]
[1726248173151,1.08450752,2411.5,2411.4,1.8427]
[1726248173449,1.08450752,2411.6,2411.5,0.41461]
[1726248173655,5.24726707,2411.7,2411.5,0.41461]
[1726248173854,1.62487707,2411.6,2411.5,0.41461]
[1726248174051,2.03947707,2411.6,2411.5,0.41461]
[1726248175250,1.62487707,2411.6,2411.5,0.41461]
[1726248175546,3.62239,2411.7,2411.6,0.4146]
[1726248175547,4.83267707,2411.7,2411.6,0.4146]
[1726248176345,1.62487707,2411.7,2411.6,0.4146]
[1726248176550,1.62487707,2411.8,2411.7,0.41458]
[1726248176848,1.62487707,2411.8,2411.7,0.80508]
[1726248177052,0.4048,2411.9,2411.8,0.41456]
[1726248177053,2.02967707,2411.9,2411.8,0.41456]
[1726248177453,2.44421707,2411.9,2411.8,0.41456]
[1726248177756,2.02967707,2411.9,2411.8,0.41456]
[1726248177952,2.03110294,2411.9,2411.8,0.41456]
[1726248178255,2.44564294,2411.9,2411.8,0.41456]
[1726248178748,2.03110294,2411.9,2411.8,0.41456]
[1726248179155,0.4048,2411.9,2411.8,0.41456]
[1726248179453,2.03110294,2411.9,2411.8,0.41456]
[1726248180044,2.02060294,2412.0,2411.9,0.41454]
[1726248180457,4.95523,2412.0,2411.9,0.41454]
[1726248180655,4.5407,2412.0,2411.9,0.41454]
[1726248180857,4.5407,2412.0,2411.7,0.3905]
[1726248180858,2.17230829,2412.2,2412.1,0.41451]
[1726248181154,1.62623698,2412.2,2412.1,0.41451]
[1726248181560,2.04072698,2412.2,2412.1,0.41451]
[1726248182360,2.04072698,2412.2,2411.9,1.8667]
[1726248182557,1.08418856,2412.1,2412.0,0.41453]
[1726248184959,1.49870856,2412.1,2411.8,3.2078]
[1726248185156,1.46178856,2412.0,2411.9,0.41453]
[1726248186153,2.00383698,2412.0,2411.5,1.49]
[1726248186360,0.41459,2411.7,2411.5,0.4146]
[1726248186557,0.3776,2411.6,2411.5,0.4146]
[1726248188556,1.46199339,2411.6,2411.5,0.4146]
[1726248190061,1.46199339,2411.6,2411.4,0.80482]
[1726248190062,0.41461,2411.5,2411.4,0.80482]
[1726248190256,1.87660339,2411.6,2411.4,0.41462]
[1726248190456,1.84639339,2411.5,2411.4,0.41462]
[1726248190861,2.80285698,2411.5,2411.2,3.2078]
[1726248191061,1.08489117,2411.4,2411.3,0.41465]
[1726248193168,1.49952117,2411.4,2411.3,0.41465]
[1726248193366,2.04086698,2411.4,2411.3,0.41465]
[1726248194561,8.845,2411.4,2411.1,0.41467]
[1726248194761,1.62770159,2411.2,2411.1,0.41467]
[1726248195367,2.04237159,2411.2,2411.1,0.41467]
[1726248196069,2.44897159,2411.2,2411.1,0.41467]
[1726248197674,0.4147,2411.0,2410.9,1.8699]
[1726248197973,1.49985616,2411.0,2410.9,0.41472]
[1726248198279,2.78797273,2411.1,2411.0,0.4147]
[1726248199672,2.78797273,2411.1,2410.9,0.4147]
[1726248199876,1.4997392,2411.0,2410.9,0.4147]
[1726248200281,1.0850392,2411.0,2410.9,0.4147]
[1726248200579,2.04248273,2411.0,2410.9,0.4147]
[1726248201371,2.78797273,2411.1,2410.9,0.4147]
[1726248201572,1.49962842,2411.0,2410.9,0.4147]
[1726248202880,0.41472,2410.9,2410.8,3.2078]
[1726248203276,0.41472,2410.9,2410.8,3.62253]
[1726248203570,1.49964842,2410.9,2410.8,3.62253]
[1726248203776,1.08492842,2410.9,2410.8,3.62253]
[1726248204578,1.49963842,2411.0,2410.8,3.62253]
[1726248205388,4.148,2410.9,2410.2,1.17471705]
[1726248205686,4.148,2410.9,2410.5,0.41478]
[1726248205687,1.49923686,2410.6,2410.5,0.41478]
[1726248205985,1.49934484,2410.6,2410.5,0.41478]
[1726248206177,2.25164484,2410.6,2410.5,0.41478]
[1726248206570,2.25165484,2410.6,2410.5,3.62258]
[1726248206774,2.25134143,2410.6,2410.5,3.62258]
[1726248207681,2.25134143,2410.6,2410.5,3.2078]
[1726248207879,2.25134143,2410.6,2410.5,3.62258]
[1726248208074,2.25134143,2410.6,2410.5,3.2078]
[1726248208680,0.3752,2410.6,2410.5,3.62258]
[1726248209180,0.3752,2410.6,2410.5,4.40478]
[1726248210577,1.08426143,2410.8,2410.5,8.1388]
[1726248210777,1.62778273,2410.9,2410.8,0.41473]
[1726248210778,1.08426143,2410.9,2410.8,0.41473]
[1726248210977,1.85526143,2411.0,2410.9,0.41472]
[1726248211180,0.771,2411.0,2410.9,0.41472]
[1726248211987,1.85526143,2411.0,2410.9,0.41472]
[1726248212488,0.771,2411.0,2410.9,0.41472]
[1726248212692,0.76261179,2411.0,2410.9,0.41472]
[1726248219084,1.84687322,2411.0,2410.9,0.41472]
[1726248219285,3.33687322,2411.0,2410.9,0.41472]
[1726248219494,3.33687322,2411.0,2410.8,0.3962]
[1726248219495,3.75158322,2411.0,2410.8,0.3962]
[1726248219689,3.33687322,2411.0,2410.9,0.41472]
[1726248220288,0.41474,2410.8,2410.7,0.41474]
[1726248220483,0.41475,2410.7,2410.6,0.41476]
[1726248220692,2.2793,2410.7,2410.6,0.41475]
[1726248220991,0.7893,2410.7,2410.6,0.41475]
[1726248221184,0.3805,2410.7,2410.6,0.41475]
[1726248221386,0.3805,2410.7,2410.6,5.50075]
[1726248221787,0.3805,2410.7,2410.6,4.01075]
[1726248221986,0.3805,2410.7,2410.6,3.62255]
[1726248223597,0.3805,2410.7,2410.6,0.41475]
[1726248223796,1.46313714,2410.7,2410.4,0.3882]
[1726248224097,1.46313714,2410.7,2410.5,0.41478]
[1726248224098,0.7834,2410.6,2410.5,0.41478]
[1726248224301,1.19818,2410.6,2410.4,0.41479]
[1726248224494,0.41478,2410.5,2410.4,0.41479]
[1726248224695,1.19818,2410.6,2410.4,0.41479]
[1726248224995,0.41478,2410.5,2410.4,0.41479]
[1726248225193,1.19818,2410.6,2410.4,0.41479]
[1726248225497,1.19818,2410.6,2410.4,0.4148]
[1726248227391,0.41478,2410.5,2410.4,0.4148]
[1726248227699,1.19818,2410.6,2410.4,0.4148]
[1726248227899,0.41478,2410.5,2410.3,0.82471]
[1726248228093,0.41478,2410.5,2410.4,0.4148]
[1726248229493,0.7834,2410.6,2410.3,0.41481]
[1726248229494,0.4148,2410.4,2410.3,0.41481]
[1726248230394,0.4148,2410.5,2410.2,3.2078]
[1726248230693,0.4148,2410.5,2410.3,0.41481]
[1726248231391,1.49743714,2410.5,2410.3,0.41481]
[1726248231802,0.4148,2410.5,2410.3,0.41481]
[1726248232190,2.90298714,2410.6,2410.1,3.6134]
[1726248232397,0.41481,2410.4,2410.2,0.41484]
[1726248234398,0.41485,2410.2,2409.9,0.3882]
[1726248234592,0.41485,2410.2,2409.9,1.19888]
[1726248234593,0.7992,2410.1,2409.9,1.19888]
[1726248234794,1.21406,2410.1,2410.0,0.41487]
[1726248235299,0.7992,2410.1,2410.0,0.41487]
[1726248235703,1.21405,2410.1,2409.9,0.81068]
[1726248235897,0.7992,2410.1,2409.9,0.81068]
[1726248236196,0.41487,2410.0,2409.9,0.41488]
[1726248236405,1.08263714,2410.0,2409.8,0.41489]
[1726248237096,1.08263714,2410.0,2409.5,0.81854]
[1726248237097,0.41493,2409.7,2409.5,0.81854]
[1726248237397,0.7684,2409.6,2409.5,0.41496]
[1726248237598,1.08263714,2409.8,2409.7,0.41492]
[1726248238097,2.26592714,2409.9,2409.7,0.41492]
[1726248238301,2.26592714,2409.9,2409.6,1.19573]
[1726248238302,0.41491,2409.8,2409.6,1.19573]
[1726248238599,2.26593714,2409.9,2409.6,1.19573]
[1726248238800,1.08263714,2409.8,2409.6,1.19573]
[1726248239102,2.26592714,2409.9,2409.7,0.41492]
[1726248239701,2.26592714,2409.9,2409.7,7.3574]
[1726248239702,1.08263714,2409.9,2409.7,7.3574]
[1726248240001,1.08263714,2410.1,2409.8,1.49]
[1726248240194,1.08263714,2410.1,2409.9,0.82038]
[1726248240392,1.49749714,2410.1,2409.9,0.82038]
[1726248240695,1.08263714,2410.1,2410.0,0.41487]
[1726248242104,1.08263714,2410.1,2409.9,0.4055]
[1726248242105,1.08263714,2410.1,2409.9,0.82038]
[1726248242699,1.08263714,2410.1,2410.0,0.41487]
[1726248243304,7.68223273,2410.1,2409.9,0.41489]
[1726248243499,1.08439082,2410.1,2410.0,0.41487]
[1726248243702,1.08439082,2410.2,2410.1,0.41485]
[1726248244106,1.08429442,2410.2,2410.1,0.41485]
[1726248244501,1.62778273,2410.2,2410.1,0.41485]
[1726248244803,1.08427382,2410.2,2410.1,0.79635]
[1726248246898,1.08427382,2410.3,2410.2,0.41484]
[1726248247093,1.08427382,2410.5,2410.4,0.4148]
[1726248247495,1.08427382,2410.5,2410.4,0.7997]
[1726248247696,1.08421755,2410.5,2410.4,0.7997]
[1726248250506,1.08421755,2410.6,2410.5,0.41478]
[1726248251012,2.98923775,2410.6,2410.4,0.79969]
[1726248251207,1.08450368,2410.5,2410.4,0.79969]
[1726248251404,1.08450368,2410.5,2410.3,0.41481]
[1726248251405,1.49928368,2410.5,2410.3,0.41481]
[1726248251599,0.41482,2410.3,2410.2,3.2078]
[1726248251805,1.49932368,2410.3,2410.2,3.2078]
[1726248252006,6.19140273,2410.3,2410.2,3.2078]
[1726248253503,6.19140273,2410.3,2409.8,0.78999]
[1726248253504,1.03712,2410.2,2409.8,0.78999]
[1726248253701,1.49,2410.0,2409.5,5.73519]
[1726248253907,1.49,2409.8,2409.7,0.41491]
[1726248254109,0.41491,2409.8,2409.6,0.41494]
[1726248254316,0.41491,2409.8,2409.5,3.2078]
[1726248254317,0.396,2409.7,2409.0,4.81031705]
[1726248254501,0.396,2409.7,2409.4,0.41496]
[1726248254502,2.29800556,2409.7,2409.4,0.41496]
[1726248256711,0.41495,2409.6,2409.4,0.41497]
[1726248257111,2.29800556,2409.7,2409.4,0.41497]
[1726248257904,0.41496,2409.5,2409.3,0.41499]
[1726248258104,0.41496,2409.5,2409.2,3.6228]
[1726248258311,0.3894,2409.4,2409.2,3.2078]
[1726248258512,0.3894,2409.4,2409.3,0.41499]
[1726248261416,0.80438,2409.4,2409.2,3.6228]
[1726248261718,0.3932,2409.3,2409.2,3.6228]
[1726248261909,1.08467556,2409.6,2409.5,0.41496]
[1726248262110,1.89560556,2409.7,2409.5,0.41496]
[1726248262420,1.89559556,2409.7,2409.5,0.41494]
[1726248262917,1.89559556,2409.7,2409.3,0.41499]
[1726248262918,0.41495,2409.6,2409.3,0.41499]
[1726248263114,0.41496,2409.5,2409.3,0.41499]
[1726248263419,0.41495,2409.6,2409.3,0.41499]
[1726248263717,1.49962556,2409.6,2409.4,0.41497]
[1726248264316,0.41495,2409.6,2409.4,0.41497]
[1726248264515,0.41495,2409.6,2409.3,0.41497]
[1726248264714,1.48067556,2409.7,2409.3,0.41497]
[1726248264922,0.41496,2409.5,2409.3,0.41497]
[1726248265125,0.41495,2409.6,2409.4,0.41496]
[1726248265315,0.41496,2409.5,2409.3,0.41498]
[1726248265513,0.41499,2409.4,2409.2,3.2078]
[1726248265720,0.41499,2409.3,2409.0,0.7882]
[1726248265915,3.24,2409.1,2408.5,3.2078]
[1726248266112,0.41507,2408.9,2408.6,1.1819]
[1726248266312,0.4113,2409.0,2408.6,0.7668]
[1726248266525,0.82635,2409.0,2408.7,0.41509]
[1726248266819,0.82635,2409.0,2408.7,0.41508]
[1726248267124,0.41506,2408.9,2408.6,1.1819]
[1726248267423,0.41506,2408.9,2408.6,0.4151]
[1726248267922,0.41506,2408.9,2408.5,3.2078]
[1726248268113,0.41506,2408.9,2408.6,0.4151]
[1726248268314,3.6513,2409.0,2408.5,3.2078]
[1726248268522,4.68893,2409.0,2408.3,0.7875]
[1726248268712,4.68893,2409.0,2408.3,0.41516]
[1726248268713,3.65512,2408.6,2408.3,0.41516]
[1726248268910,0.3897,2408.5,2408.3,0.41516]
[1726248269114,0.3897,2408.5,2408.2,0.41517]
[1726248269115,1.21204,2408.5,2408.2,0.41517]
[1726248269332,1.21204,2408.5,2408.1,3.2078]
[1726248269333,0.7969,2408.5,2408.1,3.2078]
[1726248269625,0.7969,2408.5,2408.3,0.41515]
[1726248269823,1.08467556,2408.9,2408.4,6.4478]
[1726248270125,2.28582556,2409.0,2408.6,0.41511]
[1726248270428,2.28582556,2409.0,2408.5,0.777]
[1726248270622,0.7861,2409.0,2408.8,0.41507]
[1726248270826,0.7861,2409.0,2408.7,3.2078]
[1726248270827,0.4005,2409.0,2408.7,3.2078]
[1726248271124,0.3856,2409.3,2409.1,0.41502]
[1726248271322,0.3856,2409.3,2409.0,0.41504]
[1726248271526,0.3856,2409.3,2409.1,0.41502]
[1726248271727,0.3856,2409.3,2408.7,3.2078]
[1726248271912,0.3856,2409.3,2409.1,0.41502]
[1726248272112,0.3856,2409.3,2409.0,0.41503]
[1726248272319,0.3856,2409.3,2409.1,0.41502]
[1726248273030,0.3856,2409.3,2409.0,0.41503]
[1726248273218,0.3856,2409.3,2409.1,0.41502]
[1726248273420,0.3856,2409.3,2408.7,3.5470276]
[1726248273620,4.0406,2409.3,2408.7,3.5470276]
[1726248273925,0.3856,2409.3,2409.1,0.41502]
[1726248274127,0.3856,2409.3,2409.2,0.41501]
[1726248274430,0.3856,2409.3,2409.1,0.41502]
[1726248274729,0.3856,2409.3,2408.8,3.24]
[1726248274927,0.3856,2409.3,2409.1,0.41502]
[1726248275123,0.3856,2409.3,2409.0,0.41504]
[1726248275323,0.3856,2409.3,2409.1,0.41502]
[1726248277130,0.3856,2409.3,2409.0,0.79093]
[1726248277628,0.3856,2409.3,2409.1,0.41503]
[1726248278020,0.3856,2409.3,2409.0,0.3759]
[1726248278333,0.3856,2409.3,2409.1,0.41502]
[1726248279827,0.80059,2409.3,2409.1,0.41502]
[1726248281526,0.3856,2409.3,2409.2,0.41501]
[1726248284634,0.3913,2409.4,2409.3,0.41499]
[1726248284934,0.4005,2409.5,2409.1,1.03756]
[1726248285135,0.81546,2409.5,2409.3,0.41498]
[1726248286431,0.4005,2409.5,2409.3,0.41498]
[1726248286828,0.81546,2409.5,2409.3,0.41498]
[1726248288036,0.4005,2409.5,2409.4,0.41497]
[1726248288634,0.4005,2409.5,2409.0,5.33977902]
[1726248288635,0.4005,2409.5,2409.3,0.41498]
[1726248288835,0.4005,2409.5,2409.4,0.41497]
[1726248289337,0.81546,2409.5,2409.0,5.33977902]
[1726248289527,0.81546,2409.5,2409.3,0.41499]
[1726248289727,0.4005,2409.5,2409.1,0.41502]
[1726248289935,3.65498,2409.4,2409.2,0.415]
[1726248290431,0.41497,2409.4,2409.2,0.415]
[1726248290638,0.4005,2409.5,2409.3,0.41498]
[1726248291030,4.5509,2409.5,2409.4,0.41497]
[1726248291231,4.5509,2409.5,2409.3,0.41498]
[1726248291431,0.4005,2409.5,2409.3,0.41498]
[1726248291933,0.81546,2409.5,2409.3,0.41498]
[1726248292433,0.81546,2409.5,2409.4,0.41497]
[1726248292634,0.4005,2409.5,2409.4,0.41497]
[1726248294326,1.48517556,2409.5,2409.4,0.41497]
[1726248295433,2.02751334,2409.5,2409.4,0.41497]
[1726248298039,2.02888416,2409.5,2409.4,0.41497]
[1726248298236,0.4005,2409.5,2409.4,0.41497]
[1726248299338,2.57280829,2409.5,2409.4,0.41497]
[1726248300643,2.57280829,2409.5,2409.4,1.45241]
[1726248300836,2.57280829,2409.5,2409.4,0.41497]
[1726248301037,1.62976848,2409.5,2409.4,0.41497]
[1726248301636,1.62976848,2409.5,2409.4,12.64025]
[1726248301837,1.08651797,2409.6,2409.5,2.48976]
[1726248302040,1.08651797,2409.7,2409.6,1.4523]
[1726248302239,1.08651797,2409.7,2409.6,1.8393]
[1726248302439,1.08651797,2409.7,2409.6,5.9889]
[1726248302640,1.08651797,2409.7,2409.6,0.80194]
[1726248302846,1.08651797,2409.7,2409.6,0.41494]
[1726248303345,1.62976848,2409.7,2409.6,0.41494]
[1726248303649,1.62976848,2409.7,2409.5,3.2078]
[1726248303845,1.08628274,2409.6,2409.5,3.62276]